Cogmind - Beta 13 @@@ ROGUE MODE // 2024.07.26 @ 19:12:13 Player: kirkalish Result: Destroyed by G-34 Mercenary with Small Laser Performance ------------- Evolutions (1) 500 Regions Visited (3) 600 Robots Destroyed (16) 80 Value Destroyed (458) 458 Prototype IDs (4) 80 Alien Tech Used (0) 0 Bonus (0) 0 TOTAL SCORE: 1718 Bonus ------- None Cogmind --------- Core Integrity 0/400 Matter 300/300 Energy 415/415 System Corruption 2% Temperature Cool (6) Movement Walking (260) Ox2 Location -9/Materials Parts ------- > --- POWER (2) -------- Ion Engine Improved Ion Engine > --- PROPULSION (2) --- Aluminum Leg > --- UTILITY (3) ------ Medium Storage Unit > --- WEAPON (2) ------- Axe Axe > --- INVENTORY (10) --- Light Treads Heat Sink Shield Generator Beam Rifle Assault Rifle Heavy Assault Rifle Grenade Launcher Rocket Launcher Mining Laser Mining Laser Peak State ------------ > --- POWER ------------ Light Ion Engine Improved Ion Engine > --- PROPULSION ------- Wheel Wheel > --- UTILITY ---------- Medium Storage Unit Reactive Plating Reactive Plating > --- WEAPON ----------- Axe Axe > --- INVENTORY -------- Heat Sink Shield Generator Beam Rifle Assault Rifle Heavy Assault Rifle Grenade Launcher Rocket Launcher Mining Laser Mining Laser [Rating: 19] Favorites ----------- Power Ion Engine Engine Ion Engine Propulsion Aluminum Leg Leg Aluminum Leg Wheel Wheel Utility Medium Storage Unit Device Trap Scanner Storage Medium Storage Unit Protection Reactive Plating Weapon Assault Rifle Ballistic Gun Assault Rifle Ballistic Cannon Light Cannon Launcher Rocket Launcher Slashing Weapon Axe Build | -11 -10 -10 -9 ------- Run | Yrd Mat Min Mat Slots Evolved 2 | . . . 2 Power 1 | . . . 1 Propulsion . | . . . . Utility 1 | . . . 1 Weapon . | . . . . Parts Attached 25 | 6 2 2 15 Power 4 | 1 . . 3 Engine 4 | 1 . . 3 Core . | . . . . Reactor . | . . . . Propulsion 7 | 2 . . 5 Treads . | . . . . Leg 5 | 2 . . 3 Wheel 2 | . . . 2 Hover . | . . . . Flight . | . . . . Utility 8 | 1 1 2 4 Device 2 | . . . 2 Storage 4 | 1 1 2 . Processor . | . . . . Hackware . | . . . . Protection 2 | . . . 2 Artifact . | . . . . Weapon 6 | 2 1 . 3 Energy Gun . | . . . . Energy Cannon . | . . . . Ballistic Gun 2 | 2 . . . Ballistic Cannon 1 | . 1 . . Launcher 1 | . . . 1 Special Weapon . | . . . . Impact Weapon . | . . . . Slashing Weapon 2 | . . . 2 Piercing Weapon . | . . . . Special Melee Weapon . | . . . . Unidentified Prototypes . | . . . . Parts Lost 9 | . . . 9 Power 1 | . . . 1 Propulsion 3 | . . . 3 Utility 4 | . . . 4 Weapon 1 | . . . 1 Highest Loss Streak 6 | . . . 6 To Critical Strikes . | . . . . Average Slot Usage (%) 87 | . 98 100 78 Engine 13 | . 14 14 12 Leg 18 | . 28 28 11 Wheel 2 | . . . 4 Device 1 | . . . 3 Storage 21 | . 26 28 16 Protection 4 | . . . 8 Ballistic Gun 9 | . 15 14 5 Ballistic Cannon 8 | . 12 14 5 Slashing Weapon 5 | . . . 10 Naked Turns . | . . . . Heaviest Build 48 | 14 19 24 48 Greatest Support 23 | 20 20 20 23 Greatest Overweight (x) 12 | . . 1 12 Average Overweight (x) . | . . . 1 Largest Inventory Capacity 10 | 8 8 10 10 Average Capacity 9 | 6 8 9 10 Most Carried 10 | 3 5 6 10 Average Carried 5 | 1 2 4 7 Final Capacity 10 | 8 8 10 10 Final Carried 10 | . 5 4 10 Class Distribution -------------------- 100% | Mutant Dominant Class ---------------- Mutant | -10/Materials Mutant | -10/Mines Mutant | -9/Materials Resources | -11 -10 -10 -9 ----------- Run | Yrd Mat Min Mat Matter Collected 698 | 59 99 250 290 Remotely . | . . . . Salvage Created 447 | . 95 . 352 Parts 31 | . 11 . 20 Haulers Intercepted . | . . . . Recyclers Shooed 1 | . 1 . . Parts Field Recycled . | . . . . Retrieved Matter . | . . . . Parts Self-Destructed . | . . . . Prevented . | . . . . Kills | -11 -10 -10 -9 ------- Run | Yrd Mat Min Mat Combat Hostiles Destroyed 13 | . 5 . 8 Melee 6 | . 1 . 5 Guns 4 | . 3 . 1 Cannons 3 | . 1 . 2 Classes Destroyed 5 | . 2 . 3 Worker 1 | . . . 1 Watcher 2 | . . . 2 Swarmer 3 | . 3 . . Grunt 8 | . 2 . 6 Sentry 2 | . . . 2 Best Kill Streak 4 | . 4 . 3 Combat Bots Only 4 | . 4 . 2 Max Kills in Single Turn 1 | . 1 . 1 Gunslinging . | . . . . Exploded . | . . . . Melee 1 | . 1 . 1 Uniques/NPCs Destroyed . | . . . . Combat | -11 -10 -10 -9 -------- Run | Yrd Mat Min Mat Hostile Shots Fired 197 | . 48 . 149 Missed 54 | . 19 . 35 Damage Taken 1893 | . 273 . 1620 Core 443 | . 36 . 407 Absorbed by Shields . | . . . . Ignored by Resistances 26 | . . . 26 Core Remaining (%) 92 | 100 . 85 . Volleys Fired 39 | . 17 . 22 Largest 2 | . 2 . 2 Hottest 55 | . 55 . 55 Shots Fired 76 | . 34 . 42 Gun 37 | . 17 . 20 Cannon 36 | . 17 . 19 Launcher 3 | . . . 3 Special . | . . . . Kinetic 73 | . 34 . 39 Thermal . | . . . . Explosive 3 | . . . 3 Electromagnetic . | . . . . Robot Hit Streak 7 | . 5 . 7 Robot Miss Streak 4 | . 4 . 4 Penetration Max . | . . . . Secondary Targets . | . . . . Shots Hit Robots 55 | . 14 . 41 Core Hits 21 | . 6 . 15 Critical Kills . | . . . . Critical Parts Destroyed . | . . . . Critical Strikes 3 | . . . 3 Blast 1 | . . . 1 Sever 2 | . . . 2 Melee Attacks 17 | . . . 17 Impact . | . . . . Slashing 17 | . . . 17 Piercing . | . . . . Sneak Attacks . | . . . . Combat Hostiles . | . . . . Follow-up Attacks 2 | . . . 2 Damage Inflicted 1348 | . 253 . 1095 Guns 222 | . 123 . 99 Cannons 338 | . 128 . 210 Explosions 216 | . . . 216 Melee 570 | . . . 570 Ramming 2 | . 2 . . Kinetic 560 | . 251 . 309 Thermal . | . . . . Explosive 216 | . . . 216 Electromagnetic . | . . . . Impact . | . . . . Slashing 570 | . . . 570 Piercing . | . . . . Highest Corruption 2 | . . . 2 Average Corruption 1 | . . . 1 Corruption Purged . | . . . . Corruption Blocked . | . . . . Overload Shots . | . . . . Overflow Damage 36 | . . . 36 Projectiles 5 | . . . 5 Explosions 22 | . . . 22 Melee 9 | . . . 9 Knockbacks 5 | . 2 . 3 Impact . | . . . . Kinetic 5 | . 2 . 3 Secondary . | . . . . Self-Inflicted Damage 63 | . . . 63 Shots 2 | . . . 2 Rammed . | . . . . Targets Rammed 3 | . 3 . . Kicked 3 | . 3 . . Crushed . | . . . . Highest Temperature 27 | . 10 . 27 Average Temperature 6 | . 4 . 7 Received Heat Transfer 801 | . 84 . 717 Siege Activations . | . . . . Robots Corrupted . | . . . . Combat Hostiles . | . . . . Parts Fried . | . . . . Impact Corruptions . | . . . . Robots Melted . | . . . . Combat Hostiles . | . . . . Parts Melted . | . . . . Heat Transferred . | . . . . Parts Sabotaged . | . . . . Parts Stolen . | . . . . Parts Stripped . | . . . . Power Chain Reactions . | . . . . Alert | -11 -10 -10 -9 ------- Run | Yrd Mat Min Mat Peak Influence 228 | . 149 57 228 Initial 57 | . . 57 22 Average 83 | . 59 57 110 Maximum Alert Level 1 | . . . 1 Low Security (%) 99 | 100 100 100 98 Level 1 . | . . . 1 Level 2 . | . . . . Level 3 . | . . . . Level 4 . | . . . . Level 5 . | . . . . High Security . | . . . . Max Security . | . . . . Squads Dispatched 2 | . 1 . 1 Investigation 2 | . 1 . 1 Extermination . | . . . . Reinforcement . | . . . . Assault . | . . . . Garrison . | . . . . Intercept . | . . . . Searches Triggered . | . . . . Construction Impeded . | . . . . Haulers Reinforced . | . . . . Active Scanning Responses . | . . . . Cargo Convoy Interrupts . | . . . . Stealth | -11 -10 -10 -9 --------- Run | Yrd Mat Min Mat Distress Signals 1 | . . . 1 Communications Jammed . | . . . . Distress Signals . | . . . . Times Spotted 23 | . 8 . 15 Peak Tracking Total 4 | . 2 . 4 Tactical Retreats . | . . . . Traps | -11 -10 -10 -9 ------- Run | Yrd Mat Min Mat Traps Triggered 2 | . . . 2 Indirectly . | . . . . Trap Hack Attempts . | . . . . Triggered . | . . . . Disarmed . | . . . . Reprogrammed . | . . . . Reused . | . . . . Traps Extracted . | . . . . Installed . | . . . . Triggered . | . . . . Machines | -11 -10 -10 -9 ---------- Run | Yrd Mat Min Mat Machines Disabled 2 | . . . 2 Max in Single Turn 1 | . . . 1 Machines Repaired . | . . . . Machines Dismantled . | . . . . Machines Sabotaged . | . . . . Overloaded Fab Kills . | . . . . Hacking | -11 -10 -10 -9 --------- Run | Yrd Mat Min Mat Machines Accessed 3 | . 1 . 2 Terminals 2 | . 1 . 1 Fabricators . | . . . . Repair Stations . | . . . . Recycling Units . | . . . . Scanalyzers 1 | . . . 1 Garrison Access . | . . . . Total Hacks 8 | . 3 . 5 Successful 3 | . 1 . 2 Failed 5 | . 2 . 3 Catastrophic 1 | . 1 . . Database Lockouts . | . . . . Manual . | . . . . Terminals 5 | . 3 . 2 Fabricators . | . . . . Repair Stations . | . . . . Recycling Units . | . . . . Scanalyzers 3 | . . . 3 Garrison Access . | . . . . Terminal Hacks 1 | . 1 . . Prototype ID Bank 1 | . 1 . . Fabricator Hacks . | . . . . Repair Station Hacks . | . . . . Recycling Unit Hacks . | . . . . Scanalyzer 2 | . . . 2 Insert Component 1 | . . . 1 Analyze 1 | . . . 1 Garrison Access Hacks . | . . . . Unauthorized Hacks . | . . . . Terminals . | . . . . Fabricators . | . . . . Repair Stations . | . . . . Recycling Units . | . . . . Scanalyzers . | . . . . Garrison Access . | . . . . Data Cores Recovered . | . . . . Used . | . . . . Hacking Detections 2 | . 1 . 1 Full Trace Events 2 | . 1 . 1 Feedback Events . | . . . . Feedback Blocked . | . . . . Robot Schematics Acquired . | . . . . Robots Built . | . . . . Authchips . | . . . . Time . | . . . . Total Robot Build Rating . | . . . . Part Schematics Acquired 1 | . . . 1 Parts Built . | . . . . Authchips . | . . . . Time . | . . . . Total Part Build Rating . | . . . . Parts Repaired . | . . . . Time . | . . . . Parts Recycled . | . . . . Recycled Matter . | . . . . Retrieved Matter . | . . . . Retrieved Components . | . . . . Parts Scanalyzed 1 | . . . 1 Part Schematics Acquired 1 | . . . 1 Parts Damaged 1 | . . . 1 Bothacking | -11 -10 -10 -9 ------------ Run | Yrd Mat Min Mat Used RIF Installer . | . . . . Robots Hacked . | . . . . Non-combat . | . . . . Combat . | . . . . Robot Hacks Applied . | . . . . Relay Couplers Released . | . . . . Fabnet Peak Effective % . | . . . . Robots Rewired . | . . . . Allies Hacked . | . . . . Hacks Repelled . | . . . . Allies | -11 -10 -10 -9 -------- Run | Yrd Mat Min Mat Total Allies . | . . . . Largest Group . | . . . . Highest-Rated Group . | . . . . Highest-Rated Ally . | . . . . Total Orders . | . . . . Ally Attacks . | . . . . Total Damage . | . . . . Kills . | . . . . Allies Corrupted . | . . . . Allies Melted . | . . . . Intel | -11 -10 -10 -9 ------- Run | Yrd Mat Min Mat Robot Analysis Total . | . . . . Derelict Logs Recovered . | . . . . Drone Launches . | . . . . Drone Recoveries . | . . . . Exploration | -11 -10 -10 -9 ------------- Run | Yrd Mat Min Mat Turns Passed 829 | 42 160 187 440 Spaces Moved 405 | 30 77 106 192 Core 16 | 6 . . 10 Treads . | . . . . Legs 327 | 24 77 106 120 Wheels 62 | . . . 62 Hover . | . . . . Flight . | . . . . Fastest Speed 50 | 50 120 120 95 Average Speed 145 | 106 120 157 154 Slowest Speed 650 | 120 120 190 650 Overloaded Moves . | . . . . Propulsion Burnouts . | . . . . Robots Hopped . | . . . . Cave-ins Triggered . | . . . . Exploration Rate (%) 13 | 3 17 16 17 Regions Visited 3 Branch Regions 1 Pre-discovered Areas . | . . . . Known Exits Taken . | . . . . Unknown Exits Taken 3 | 1 1 1 . Scrap Searched . | . . . . Spaces Dug . | . . . . Terrain Destroyed 25 | . . . 25 Melee . | . . . . Projectile . | . . . . AOE 25 | . . . 25 Terrain Rammed . | . . . . Walls Destroyed . | . . . . Machines Disabled . | . . . . Actions | -11 -10 -10 -9 --------- Run | Yrd Mat Min Mat Total 542 | 38 110 127 267 Wait 20 | . 5 15 . Move 402 | 29 76 105 192 Hop . | . . . . Pick Up 28 | 3 6 2 17 Fast Attach 4 | 3 . . 1 Attach 14 | 3 2 . 9 Detach 1 | . 1 . . Swap 7 | . . 2 5 Drop 9 | . . 3 6 Fire 39 | . 17 . 22 Melee 15 | . . . 15 Ram . | . . . . Kick 3 | . 3 . . Crush . | . . . . Escape Stasis . | . . . . Rewire . | . . . . Trap . | . . . . Miscellaneous . | . . . . Route ------- -11/Scrapyard -10/Materials -10/Mines -9/Materials History --------- Turn | Location | Event 5 | -11/Scrapyard | Discovered new exit (range 16) 43 | -11/Scrapyard | Entered Materials 167 | -10/Materials | Discovered new exit (range 7) 203 | -10/Materials | Entered Mines 223 | -10/Mines | Discovered new exit (range 7) 312 | -10/Mines | Build established: Mutant 363 | -10/Mines | Assembled infested the area 368 | -10/Mines | Assisted by a Guerilla fighting off Assembled 390 | -10/Mines | Entered Materials 390 | -9/Materials | Evolved 2 slots: Power x1, Utility x1 655 | -9/Materials | Core integrity fell below 50% 670 | -9/Materials | Lost 6 parts (1p2n2u1w) 756 | -9/Materials | Core integrity fell below 20% 830 | -9/Materials | Destroyed by G-34 Mercenary with Small Laser Last Messages --------------- 00762_ U-05 Engineer lays Concrete. 00768_ U-05 Engineer builds a Wall. 00769_ U-05 Engineer lays Concrete. 00775_ U-05 Engineer builds a Wall. 00782_ G-34 Mercenary destroyed. 00792_ Dropped Wheel. 00793_ Acquired Aluminum Leg. 00794_ Acquired 27 matter. 00794_ Triggered EMP Trap. 00794_ A bubble of electromagnetic force engulfs the area. 00794_ Atomic Centrifuge disabled. 00794_ Door malfunctions. 00798_ U-05 Engineer lays Concrete. 00802_ G-34 Mercenary Aluminum Leg severed. 00805_ Axe follow-up attack on G-34 Mercenary. 00805_ Destroyed Heat Sink. 00808_ G-34 Mercenary destroyed. 00818_ Axe follow-up attack on G-34 Mercenary. 00823_ Reactive Plating destroyed. Map ----- +----------------------------------------------------+ | ????????????????????????????????????????????? | | ????????????????????????????????????????????? | | ????????????????????????????????????????????? | | ????????????????????????????????????????????? | | ????????????????????????????????????????????? | | ????????????????????????????????????????????? | | ????????????????????????????????????????????? | | ????????????????????????????????????????????? | | ??????????????????????? ??????????????????? | | ??????????????????????# ??????????????????? | | ??????????????????????# ??????????????????? | | ????????????????????#?# #?????????????????? | | ????????????????????? # #?????????????????? | | ??????????????????????+ +?????????????????? | | ??????????????????????# #?????????????????? | | ??????????????????????# #?????????????????? | | ?????????????????????## ##??###???????????? | | ?????????????????????# #########????????? | | ?????????????????????# ##????????? | | ?????????????????????# ##????????? | | ?????????????????????# ##########? | | ?????????????????????# #### # #? | | ???????????????????#####+###### # "" #? | | ???????????????????#=%==%* =[## # ] """#? | | ???????????????????#!%^^= = ## # [S"#? | | ???????????????????# g @ ## # ! ## | | ???????????????????#= " "g + + # | | ???????????????????# " "" %## # == ## | | ???????????????????# ^ #### # == #? | | ???????????????????# ^ = ## # # #? | | ???????????????????# ####+##########? | | ???????????????????############ == #?????? | | ??????????????????????????????# == #?????? | | ???????????????#####??????????# = #?????? | | ???????????????# #??????????# #?????? | | ???????????????#!! ################+###?????? | | ???????????????# / #?????? | | ???????????????# / +? ""?# | | ???????????????# ! "T" #?""" # | | ???????????????#!! #+######### #?""" ? | | ???????????????##### # #?""" ? | | ???????????????????# """ """ # #? " ?? | | ???????????????????# """ """ + #? ??? | | ???????????????????# """ """ # ##"#??? | | ???????????????????# # " #??? | | ???????????????????# # """ #??? | | ???????????????????# # """ #??? | | ???????????????????# # """ #??? | | ???????????????????########### " #??? | | ?????????????????????????????# """ = #??? | +----------------------------------------------------+ Best States ------------- Heat Dissipation 28 Energy Generation 17 Energy Capacity 415 Matter Stores 336 Matter Capacity 500 Sight Range 16 Terrain Scan Density 10 Armor Coverage 300 Resistance: KI 20 Evasion (%) 55 Item Schematics ----------------- Imp. Medium Laser | -9/Materials | Scanalyzed Robot Schematics ------------------ None Fabricated ------------ Nothing Alien Tech Used ----------------- None Achievements -------------- None Challenges ------------ None Game ------ Seed WeightRagnarokModule Manual? 0 Play Time 00:18:12 Cumulative 7.8 hours Start 2024.07.26 @ 18:55:40 End 2024.07.26 @ 19:12:13 Sessions 1 Manual Loads 0 Difficulty Rogue Special Mode None Game No. 18 Rogue 18 Adventurer 0 Explorer 0 Win Type - Total 0 Types 0/0/0/0/0/0/0/0/0 Lore% 2 Gallery% 10 Achievement% 7 Wizard Run 0 Options --------- Layout 1 ASCII 0 Keyboard 0 Movement Mouse Keybinds 0 Fullscreen 2 Font 32/SmallcapsGlow Map View 50x35 Zoom Use 0% Tactical HUD 1 Map Filters NONE Filters NONE Steam 1 RUN: f2eb08fc-a87b-4dd4-b23b-5374a9d14db0